fUST/lending_fUST_20250910
["ID","MTS","AMOUNT","RATE_DAILY","PERIOD"]
[384546047,1757453445025,-4757.49,0.00015616,2]
[384546049,1757453445038,-480.0,0.00015616,2]
[384546051,1757453445047,-990.69,0.00015616,2]
[384546053,1757453445057,-628.07,0.00015616,2]
[384546055,1757453445066,-480.0,0.00015616,2]
[384546057,1757453445076,-480.0,0.00015616,2]
[384546059,1757453445085,-480.0,0.00015616,2]
[384546061,1757453445094,-480.0,0.00015616,2]
[384546063,1757453445105,-480.0,0.00015616,2]
[384546065,1757453445114,-480.0,0.00015616,2]
[384546067,1757453445124,-542.61,0.00015616,2]
[384546069,1757453445133,-480.0,0.00015616,2]
[384546071,1757453445142,-538.03,0.00015616,2]
[384546073,1757453445152,-480.0,0.00015616,2]
[384546075,1757453445161,-480.0,0.00015616,2]
[384546077,1757453445170,-507.87127919,0.00015616,2]
[384546079,1757453445180,-480.0,0.00015616,2]
[384546081,1757453445189,-480.0,0.00015616,2]
[384546083,1757453445198,-2000.0,0.000157,2]
[384546085,1757453445208,-1500.0,0.00015746,2]
[384546087,1757453445217,-500.0,0.00015771,2]
[384546089,1757453445226,-579.57502831,0.0001589,2]
[384546091,1757453445236,-480.0,0.0001589,2]
[384546093,1757453445245,-480.0,0.0001589,2]
[384546095,1757453445254,-480.0,0.0001589,2]
[384546097,1757453445263,-480.0,0.0001589,2]
[384546099,1757453445272,-480.0,0.0001589,2]
[384546101,1757453445281,-535.00395857,0.0001589,2]
[384546103,1757453445292,-480.0,0.0001589,2]
[384546105,1757453445302,-480.0,0.0001589,2]
[384546107,1757453445311,-479.34035736,0.0001589,2]
[384546109,1757453445320,-480.0,0.0001589,2]
[384546111,1757453445330,-709.07,0.0001589,2]
[384546113,1757453445339,-633.95,0.0001589,2]
[384546115,1757453445348,-480.0,0.0001589,2]
[384546117,1757453445357,-582.39,0.0001589,2]
[384546119,1757453445367,-480.0,0.0001589,2]
[384546121,1757453445376,-480.0,0.0001589,2]
[384546123,1757453445386,-2207.32,0.0001589,2]
[384546125,1757453445395,-480.0,0.0001589,2]
[384546127,1757453445405,-480.0,0.0001589,2]
[384546129,1757453445415,-480.0,0.0001589,2]
[384546131,1757453445424,-566.6,0.0001589,2]
[384546133,1757453445434,-480.0,0.0001589,2]
[384546135,1757453445443,-1288.0,0.0001589,2]
[384546137,1757453445452,-480.0,0.0001589,2]
[384546139,1757453445461,-500.87,0.0001589,2]
[384546141,1757453445471,-480.0,0.0001589,2]
[384546143,1757453445480,-480.0,0.0001589,2]
[384546145,1757453445489,-623.12,0.0001589,2]
[384546147,1757453445500,-480.0,0.0001589,2]
[384546149,1757453445510,-926.17,0.0001589,2]
[384546152,1757453445519,-480.0,0.0001589,2]
[384546155,1757453445529,-480.0,0.0001589,2]
[384546157,1757453445538,-480.0,0.0001589,2]
[384546160,1757453445549,-480.0,0.0001589,2]
[384546163,1757453445558,-480.0,0.0001589,2]
[384546166,1757453445568,-501.92,0.0001589,2]
[384546170,1757453445578,-480.0,0.0001589,2]
[384546172,1757453445588,-4757.49,0.0001589,2]
[384546175,1757453445597,-480.0,0.0001589,2]
[384546177,1757453445606,-990.69,0.0001589,2]
[384546179,1757453445616,-628.07,0.0001589,2]
[384546181,1757453445625,-480.0,0.0001589,2]
[384546183,1757453445634,-480.0,0.0001589,2]
[384546185,1757453445643,-480.0,0.0001589,2]
[384546187,1757453445652,-480.0,0.0001589,2]
[384546189,1757453445661,-480.0,0.0001589,2]
[384546191,1757453445671,-283.62180326,0.0001589,2]
[384546193,1757453445680,-542.61,0.0001589,2]
[384546195,1757453445689,-480.0,0.0001589,2]
[384546198,1757453445698,-538.03,0.0001589,2]
[384546201,1757453445708,-480.0,0.0001589,2]
[384546203,1757453445717,-480.0,0.0001589,2]
[384546206,1757453445727,-480.0,0.0001589,2]
[384546209,1757453445736,-480.0,0.0001589,2]
[384546211,1757453445746,-360.0,0.00015914,2]
[384546214,1757453445754,-587.0,0.00015971,2]
[384546217,1757453445764,-480.0,0.00016164,2]
[384546219,1757453445773,-480.0,0.00016164,2]
[384546222,1757453445782,-480.0,0.00016164,2]
[384546245,1757453445792,-480.0,0.00016164,2]
[384546248,1757453445918,-480.0,0.00016164,2]
[384546250,1757453445928,-480.0,0.00016164,2]
[384546252,1757453445937,-480.0,0.00016164,2]
[384546254,1757453445947,-480.0,0.00016164,2]
[384546256,1757453445956,-709.07,0.00016164,2]
[384546258,1757453445966,-633.95,0.00016164,2]
[384546261,1757453445975,-480.0,0.00016164,2]
[384546262,1757453445985,-582.39,0.00016164,2]
[384546264,1757453445994,-480.0,0.00016164,2]
[384546267,1757453446004,-480.0,0.00016164,2]
[384546268,1757453446013,-2207.32,0.00016164,2]
[384546270,1757453446023,-627.03859519,0.00016164,2]
[384546273,1757453446033,-480.0,0.00016164,2]
[384546275,1757453446042,-480.0,0.00016164,2]
[384546277,1757453446052,-566.6,0.00016164,2]
[384546279,1757453446061,-480.0,0.00016164,2]
[384546281,1757453446070,-1288.0,0.00016164,2]
[384546283,1757453446079,-480.0,0.00016164,2]
[384546285,1757453446088,-500.87,0.00016164,2]
[384546287,1757453446098,-226.19567643,0.00016164,2]
[384546289,1757453446107,-480.0,0.00016164,2]
[384546291,1757453446117,-623.12,0.00016164,2]
[384546293,1757453446126,-480.0,0.00016164,2]
[384546295,1757453446136,-926.17,0.00016164,2]
[384546297,1757453446145,-480.0,0.00016164,2]
[384546299,1757453446155,-480.0,0.00016164,2]
[384546301,1757453446164,-480.0,0.00016164,2]
[384546303,1757453446174,-480.0,0.00016164,2]
[384546305,1757453446185,-204.18705507,0.00016164,2]
[384546307,1757453446194,-501.92,0.00016164,2]
[384546309,1757453446203,-480.0,0.00016164,2]
[384546311,1757453446214,-4757.49,0.00016164,2]
[384546313,1757453446224,-480.0,0.00016164,2]
[384546315,1757453446234,-990.69,0.00016164,2]
[384546317,1757453446243,-628.07,0.00016164,2]
[384546319,1757453446252,-480.0,0.00016164,2]
[384546321,1757453446261,-480.0,0.00016164,2]
[384546323,1757453446270,-480.0,0.00016164,2]
[384546325,1757453446279,-404.45528765,0.00016164,2]
[384546327,1757453446289,-480.0,0.00016164,2]
[384546329,1757453446298,-542.61,0.00016164,2]
[384546331,1757453446307,-480.0,0.00016164,2]
[384546333,1757453446316,-538.03,0.00016164,2]
[384546335,1757453446326,-480.0,0.00016164,2]
[384546337,1757453446335,-480.0,0.00016164,2]
[384546339,1757453446346,-480.0,0.00016164,2]
[384546341,1757453446355,-480.0,0.00016164,2]
[384546343,1757453446365,-864.0,0.000164,2]
[384546345,1757453446374,-520.0,0.00016438,3]
[384546347,1757453446383,-440.0,0.00016438,3]
[384546349,1757453446392,-480.0,0.00016438,2]
[384546351,1757453446402,-420.9516337,0.00016438,2]
[384546353,1757453446411,-315.69331896,0.00016438,2]
[384546355,1757453446420,-480.0,0.00016438,2]
[384546357,1757453446429,-480.0,0.00016438,2]
[384546359,1757453446438,-480.0,0.00016438,2]
[384546361,1757453446447,-309.03355887,0.00016438,2]
[384546363,1757453446457,-610.65585767,0.00016438,2]
[384546365,1757453446466,-709.07,0.00016438,2]
[384546367,1757453446475,-633.95,0.00016438,2]
[384546369,1757453446484,-332.91241076,0.00016438,2]
[384546371,1757453446493,-582.39,0.00016438,2]
[384546373,1757453446510,-480.0,0.00016438,2]
[384546375,1757453446519,-480.0,0.00016438,2]
[384546377,1757453446529,-2207.32,0.00016438,2]
[384546379,1757453446538,-480.0,0.00016438,2]
[384546381,1757453446547,-480.0,0.00016438,2]
[384546383,1757453446556,-566.6,0.00016438,2]
[384546385,1757453446565,-521.73954986,0.00016438,2]
[384546387,1757453446575,-1288.0,0.00016438,2]
[384546389,1757453446584,-480.0,0.00016438,2]
[384546391,1757453446594,-500.87,0.00016438,2]
[384546393,1757453446603,-480.0,0.00016438,2]
[384546395,1757453446612,-623.12,0.00016438,2]
[384546397,1757453446622,-480.0,0.00016438,2]
[384546399,1757453446631,-926.17,0.00016438,2]
[384546401,1757453446640,-480.0,0.00016438,2]
[384546403,1757453446650,-357.35293008,0.00016438,2]
[384546405,1757453446660,-480.0,0.00016438,2]
[384546407,1757453446669,-480.0,0.00016438,2]
[384546409,1757453446678,-501.92,0.00016438,2]
[384546411,1757453446688,-480.0,0.00016438,2]
[384546413,1757453446698,-4757.49,0.00016438,2]
[384546415,1757453446707,-480.0,0.00016438,2]
[384546417,1757453446716,-990.69,0.00016438,2]
[384546419,1757453446726,-628.07,0.00016438,2]
[384546421,1757453446735,-480.0,0.00016438,2]
[384546423,1757453446745,-480.0,0.00016438,2]
[384546425,1757453446753,-480.0,0.00016438,2]
[384546427,1757453446763,-480.0,0.00016438,2]
[384546429,1757453446772,-542.61,0.00016438,2]
[384546431,1757453446783,-480.0,0.00016438,2]
[384546433,1757453446792,-538.03,0.00016438,2]
[384546435,1757453446801,-480.0,0.00016438,2]
[384546437,1757453446811,-480.0,0.00016438,2]
[384546439,1757453446820,-480.0,0.00016438,2]
[384546441,1757453446830,-480.0,0.00016438,2]
[384546443,1757453446839,-460.0,0.00016462,2]
[384546445,1757453446848,-480.0,0.00016712,2]
[384546447,1757453446858,-480.0,0.00016712,2]
[384546449,1757453446867,-480.0,0.00016712,2]
[384546451,1757453446876,-480.0,0.00016712,2]
[384546453,1757453446885,-709.07,0.00016712,2]
[384546456,1757453446894,-633.95,0.00016712,2]
[384546458,1757453446903,-582.39,0.00016712,2]
[384546459,1757453446912,-480.0,0.00016712,2]
[384546461,1757453446922,-480.0,0.00016712,2]
[384546463,1757453446931,-2207.32,0.00016712,2]
[384546465,1757453446940,-480.0,0.00016712,2]
[384546467,1757453446949,-480.0,0.00016712,2]
[384546469,1757453446959,-566.6,0.00016712,2]
[384546471,1757453446968,-1288.0,0.00016712,2]
[384546473,1757453446977,-480.0,0.00016712,2]
[384546475,1757453446986,-500.87,0.00016712,2]
[384546476,1757453446995,-480.0,0.00016712,2]
[384546477,1757453447004,-623.12,0.00016712,2]
[384546478,1757453447012,-480.0,0.00016712,2]
[384546479,1757453447021,-926.17,0.00016712,2]
[384546480,1757453447030,-480.0,0.00016712,2]
[384546481,1757453447040,-480.0,0.00016712,2]
[384546483,1757453447049,-480.0,0.00016712,2]
[384546485,1757453447058,-501.92,0.00016712,2]
[384546487,1757453447067,-480.0,0.00016712,2]
[384546489,1757453447076,-4757.49,0.00016712,2]
[384546491,1757453447085,-480.0,0.00016712,2]
[384546493,1757453447094,-990.69,0.00016712,2]
[384546495,1757453447103,-628.07,0.00016712,2]
[384546497,1757453447113,-200.78565816,0.00016712,2]
[384546499,1757453447122,-480.0,0.00016712,2]
[384546501,1757453447131,-480.0,0.00016712,2]
[384546503,1757453447140,-480.0,0.00016712,2]
[384546505,1757453447150,-542.61,0.00016712,2]
[384546508,1757453447160,-480.0,0.00016712,2]
[384546510,1757453447170,-538.03,0.00016712,2]
[384546512,1757453447179,-304.60092415,0.00016712,2]
[384546514,1757453447188,-480.0,0.00016712,2]
[384546516,1757453447197,-480.0,0.00016712,2]
[384546518,1757453447206,-157.22347825,0.00016712,2]
[384546520,1757453447215,-480.0,0.00016986,2]
[384546522,1757453447223,-483.73429237,0.00016986,2]
[384546524,1757453447233,-480.0,0.00016986,2]
[384546526,1757453447242,-480.0,0.00016986,2]
[384546528,1757453447251,-709.07,0.00016986,2]
[384546530,1757453447259,-633.95,0.00016986,2]
[384546531,1757453447269,-582.39,0.00016986,2]
[384546533,1757453447278,-480.0,0.00016986,2]
[384546535,1757453447288,-480.0,0.00016986,2]
[384546538,1757453447297,-2207.32,0.00016986,2]
[384546540,1757453447307,-480.0,0.00016986,2]
[384546542,1757453447316,-480.0,0.00016986,2]
[384546544,1757453447325,-566.6,0.00016986,2]
[384546546,1757453447337,-1288.0,0.00016986,2]
[384546548,1757453447346,-480.0,0.00016986,2]
[384546550,1757453447355,-500.87,0.00016986,2]
[384546552,1757453447364,-480.0,0.00016986,2]
[384546554,1757453447373,-623.12,0.00016986,2]
[384546556,1757453447382,-480.0,0.00016986,2]
[384546558,1757453447392,-926.17,0.00016986,2]
[384546560,1757453447401,-480.0,0.00016986,2]
[384546562,1757453447410,-480.0,0.00016986,2]
[384546564,1757453447420,-480.0,0.00016986,2]
[384546566,1757453447429,-501.92,0.00016986,2]
[384546568,1757453447439,-480.0,0.00016986,2]
[384546570,1757453447449,-4757.49,0.00016986,2]
[384546572,1757453447459,-480.0,0.00016986,2]
[384546574,1757453447468,-990.69,0.00016986,2]
[384546576,1757453447477,-628.07,0.00016986,2]
[384546578,1757453447486,-480.0,0.00016986,2]
[384546580,1757453447495,-620.77423015,0.00016986,2]
[384546582,1757453447509,-480.0,0.00016986,2]
[384546584,1757453447518,-542.61,0.00016986,2]
[384546586,1757453447527,-480.0,0.00016986,2]
[384546588,1757453447537,-538.03,0.00016986,2]
[384546590,1757453447547,-480.0,0.00016986,2]
[384546592,1757453447556,-480.0,0.00016986,2]
[384546594,1757453447565,-560.0,0.0001701,2]
[384546596,1757453447574,-480.0,0.0001726,2]
[384546598,1757453447584,-480.0,0.0001726,2]
[384546600,1757453447593,-480.0,0.0001726,2]
[384546602,1757453447602,-709.07,0.0001726,2]
[384546604,1757453447611,-633.95,0.0001726,2]
[384546606,1757453447621,-582.39,0.0001726,2]
[384546608,1757453447630,-480.0,0.0001726,2]
[384546610,1757453447639,-465.2299457,0.0001726,2]
[384546612,1757453447648,-2207.32,0.0001726,2]
[384546614,1757453447658,-303.59130773,0.0001726,2]
[384546616,1757453447667,-480.0,0.0001726,2]
[384546618,1757453447676,-566.6,0.0001726,2]
[384546620,1757453447685,-1288.0,0.0001726,2]
[384546622,1757453447693,-480.0,0.0001726,2]
[384546624,1757453447703,-500.87,0.0001726,2]
[384546626,1757453447711,-480.0,0.0001726,2]
[384546628,1757453447720,-623.12,0.0001726,2]
[384546630,1757453447729,-480.0,0.0001726,2]
[384546632,1757453447739,-926.17,0.0001726,2]
[384546634,1757453447748,-480.0,0.0001726,2]
[384546637,1757453447757,-480.0,0.0001726,2]
[384546639,1757453447766,-613.86,0.0001726,2]
[384546640,1757453447776,-501.92,0.0001726,2]
[384546642,1757453447786,-480.0,0.0001726,2]
[384546645,1757453447795,-4757.49,0.0001726,2]
[384546647,1757453447805,-178.38993308,0.0001726,2]
[384546648,1757453447815,-990.69,0.0001726,2]
[384546651,1757453447825,-628.07,0.0001726,2]
[384546653,1757453447834,-480.0,0.0001726,2]
[384546655,1757453447843,-536.31761228,0.0001726,2]
[384546657,1757453447853,-542.61,0.0001726,2]
[384546659,1757453447862,-480.0,0.0001726,2]
[384546661,1757453447872,-538.03,0.0001726,2]
[384546663,1757453447882,-480.0,0.0001726,2]
[384546665,1757453447891,-480.0,0.0001726,2]
[384546667,1757453447900,-823.0,0.00017509,2]
[384546669,1757453447910,-480.0,0.00017534,2]
[384546671,1757453447919,-480.0,0.00017534,2]
[384546673,1757453447929,-709.07,0.00017534,2]
[384546675,1757453447939,-633.95,0.00017534,2]
[384546677,1757453447948,-582.39,0.00017534,2]
[384546679,1757453447957,-480.0,0.00017534,2]
[384546681,1757453447967,-2207.32,0.00017534,2]
[384546683,1757453447976,-558.17,0.00017534,2]
[384546685,1757453447986,-566.6,0.00017534,2]
[384546687,1757453447995,-1288.0,0.00017534,2]
[384546689,1757453448004,-480.0,0.00017534,2]
[384546691,1757453448013,-500.87,0.00017534,2]
[384546693,1757453448023,-282.84,0.00017534,2]
[384546695,1757453448033,-623.12,0.00017534,2]
[384546697,1757453448043,-378.65,0.00017534,2]
[384546699,1757453448053,-926.17,0.00017534,2]
[384546701,1757453448062,-480.0,0.00017534,2]
[384546703,1757453448072,-480.0,0.00017534,2]
[384546705,1757453448081,-501.92,0.00017534,2]
[384546707,1757453448091,-480.0,0.00017534,2]
[384546709,1757453448100,-4757.49,0.00017534,2]
[384546711,1757453448110,-990.69,0.00017534,2]
[384546713,1757453448119,-628.07,0.00017534,2]
[384546716,1757453448128,-438.09,0.00017534,2]
[384546718,1757453448138,-542.61,0.00017534,2]
[384546720,1757453448147,-480.0,0.00017534,2]
[384546722,1757453448157,-538.03,0.00017534,2]
[384546724,1757453448166,-472.8,0.00017534,2]
[384546726,1757453448175,-480.0,0.00017534,2]
[384546728,1757453448184,-250.0,0.00017557,2]
[384546730,1757453448193,-660.0,0.00017558,2]
[384546732,1757453448202,-1000.0,0.00017634,2]
[384546734,1757453448212,-1000.0,0.00017634,2]
[384546736,1757453448221,-151.0,0.00017634,2]
[384546738,1757453448230,-1000.0,0.00017634,2]
[384546740,1757453448239,-1000.0,0.00017634,2]
[384546742,1757453448248,-151.0,0.00017634,2]
[384546744,1757453448258,-1000.0,0.00017634,2]
[384546746,1757453448267,-151.0,0.00017634,2]
[384546748,1757453448276,-1000.0,0.00017634,2]
[384546750,1757453448285,-246.06910193,0.00017634,2]
[384546752,1757453448294,-151.0,0.00017634,2]
[384546754,1757453448304,-2030.296672,0.00017634,2]
[384546756,1757453448314,-151.0,0.00017634,2]
[384546758,1757453448324,-1000.0,0.00017634,2]
[384546760,1757453448333,-151.0,0.00017634,2]
[384546762,1757453448342,-1000.0,0.00017634,2]
[384546764,1757453448352,-151.0,0.00017634,2]
[384546766,1757453448361,-151.0,0.00017634,2]
[384546768,1757453448370,-1145.9850186,0.00017634,2]
[384546770,1757453448380,-151.0,0.00017634,2]
[384546772,1757453448389,-170.05616253,0.00017634,2]
[384546774,1757453448398,-215.24533376,0.00017634,2]
[384546776,1757453448407,-151.19246068,0.00017634,2]
[384546778,1757453448416,-500.0,0.00017634,2]
[384546780,1757453448425,-151.0,0.00017634,2]
[384546782,1757453448434,-500.0,0.00017634,2]
[384546784,1757453448443,-151.0,0.00017634,2]
[384546786,1757453448452,-500.0,0.00017634,2]
[384546788,1757453448461,-300.11116599,0.00017634,2]
[384546790,1757453448470,-500.0,0.00017634,2]
[384546792,1757453448479,-500.0,0.00017634,2]
[384546794,1757453448488,-500.0,0.00017634,2]
[384546796,1757453448500,-500.0,0.00017634,2]
[384546799,1757453448512,-500.0,0.00017634,2]
[384546801,1757453448521,-500.0,0.00017634,2]
[384546803,1757453448530,-500.0,0.00017634,2]
[384546805,1757453448540,-500.0,0.00017634,2]
[384546807,1757453448550,-500.0,0.00017634,2]
[384546809,1757453448560,-500.0,0.00017634,2]
[384546811,1757453448569,-500.0,0.00017634,2]
[384546813,1757453448579,-500.0,0.00017634,2]
[384546815,1757453448589,-500.0,0.00017634,2]
[384546817,1757453448598,-500.0,0.00017634,2]
[384546819,1757453448607,-500.0,0.00017634,2]
[384546821,1757453448616,-151.0,0.00017634,2]
[384546823,1757453448626,-151.0,0.00017634,2]
[384546825,1757453448635,-151.62745434,0.00017634,2]
[384546827,1757453448644,-446.05507863,0.00017649,2]
[384546829,1757453448654,-160.0,0.00017678,3]
[384546831,1757453448663,-153.631,0.00017678,2]
[384546833,1757453448672,-2105.41764886,0.00017689,2]
[384546835,1757453448681,-500.0,0.00017698,2]
[384546837,1757453448691,-500.0,0.00017698,2]
[384546839,1757453448700,-2183.31810187,0.00017744,2]
[384546841,1757453448709,-2264.10087164,0.00017799,2]
[384546843,1757453448718,-480.0,0.00017808,2]
[384546845,1757453448727,-471.71,0.00017808,2]
[384546847,1757453448737,-709.07,0.00017808,2]
[384546849,1757453448746,-633.95,0.00017808,2]
[384546851,1757453448755,-582.39,0.00017808,2]
[384546853,1757453448765,-480.0,0.00017808,2]
[384546855,1757453448774,-2207.32,0.00017808,2]
[384546857,1757453448784,-566.6,0.00017808,2]
[384546859,1757453448794,-1288.0,0.00017808,2]
[384546861,1757453448803,-480.0,0.00017808,2]
[384546863,1757453448813,-151.0,0.00017808,2]
[384546865,1757453448823,-500.87,0.00017808,2]
[384546867,1757453448832,-151.0,0.00017808,2]
[384546869,1757453448842,-151.0,0.00017808,2]
[384546871,1757453448851,-151.0,0.00017808,2]
[384546873,1757453448861,-623.12,0.00017808,2]
[384546875,1757453448870,-152.999587,0.00017808,2]
[384546877,1757453448880,-926.17,0.00017808,2]
[384546879,1757453448889,-359.22242576,0.00017808,2]
[384546881,1757453448898,-257.97,0.00017808,2]
[384546883,1757453448908,-501.92,0.00017808,2]
[384546886,1757453448918,-480.0,0.00017808,2]
[384546888,1757453448928,-4757.49,0.00017808,2]
[384546890,1757453448937,-990.69,0.00017808,2]
[384546904,1757453449062,-628.07,0.00017808,2]
[384546906,1757453449072,-542.61,0.00017808,2]
[384546908,1757453449082,-480.0,0.00017808,2]
[384546910,1757453449092,-538.03,0.00017808,2]
[384546912,1757453449101,-365.21,0.00017808,2]
[384546914,1757453449111,-815.0207611,0.00017854,2]
[384546916,1757453449121,-1000.0,0.00018027,5]
[384546918,1757453449130,-1000.0,0.0001804,2]
[384546920,1757453449140,-151.0,0.0001804,2]
[384546922,1757453449149,-151.0,0.0001804,2]
[384546924,1757453449158,-151.0,0.0001804,2]
[384546926,1757453449168,-151.0,0.0001804,2]
[384546928,1757453449177,-480.0,0.00018082,2]
[384546930,1757453449186,-709.07,0.00018082,2]
[384546932,1757453449196,-633.95,0.00018082,2]
[384546934,1757453449205,-582.39,0.00018082,2]
[384546936,1757453449214,-284.84,0.00018082,2]
[384546938,1757453449223,-2207.32,0.00018082,2]
[384546940,1757453449233,-566.6,0.00018082,2]
[384546942,1757453449242,-1288.0,0.00018082,2]
[384546944,1757453449251,-181.56179662,0.00018082,2]
[384546946,1757453449260,-500.87,0.00018082,2]
[384546948,1757453449269,-623.12,0.00018082,2]
[384546950,1757453449279,-926.17,0.00018082,2]
[384546952,1757453449289,-501.92,0.00018082,2]
[384546954,1757453449299,-480.0,0.00018082,2]
[384546956,1757453449308,-4757.49,0.00018082,2]
[384546958,1757453449318,-990.69,0.00018082,2]
[384546960,1757453449327,-628.07,0.00018082,2]
[384546962,1757453449336,-542.61,0.00018082,2]
[384546964,1757453449346,-480.0,0.00018082,2]
[384546966,1757453449355,-151.0,0.00018082,2]
[384546968,1757453449364,-151.0,0.00018082,2]
[384546970,1757453449374,-538.03,0.00018082,2]
[384546972,1757453449383,-151.0,0.00018082,2]
[384546975,1757453449394,-151.0,0.000181,2]
[384546977,1757453449403,-760.0,0.00018106,2]
[384546979,1757453449413,-480.0,0.00018356,2]
[384546981,1757453449422,-172.4555,0.00018356,2]
[384546983,1757453449431,-179.368217,0.00018356,2]
[384546984,1757453449441,-709.07,0.00018356,2]
[384546987,1757453449451,-633.95,0.00018356,2]
[384546989,1757453449461,-582.39,0.00018356,2]
[384546991,1757453449470,-151.0,0.00018356,2]
[384546993,1757453449479,-2207.32,0.00018356,2]
[384546995,1757453449488,-566.6,0.00018356,2]
[384546997,1757453449497,-1288.0,0.00018356,2]
[384546999,1757453449510,-500.87,0.00018356,2]
[384547001,1757453449520,-623.12,0.00018356,2]
[384547003,1757453449530,-926.17,0.00018356,2]
[384547005,1757453449540,-501.92,0.00018356,2]
[384547007,1757453449550,-312.12,0.00018356,2]
[384547009,1757453449559,-4757.49,0.00018356,2]
[384547011,1757453449568,-990.69,0.00018356,2]
[384547013,1757453449578,-628.07,0.00018356,2]
[384547015,1757453449588,-542.61,0.00018356,2]
[384547017,1757453449597,-480.0,0.00018356,2]
[384547019,1757453449607,-538.03,0.00018356,2]
[384547021,1757453449616,-500.0,0.00018427,2]
[384547023,1757453449625,-586.498,0.00018471,2]
[384547025,1757453449634,-409.0,0.00018471,2]
[384547027,1757453449644,-500.0,0.00018488,2]
[384547029,1757453449653,-500.0,0.00018488,2]
[384547031,1757453449662,-262.734125,0.00018493,2]
[384547033,1757453449671,-153.659602,0.000185,2]
[384547035,1757453449680,-151.471551,0.000185,2]
[384547037,1757453449689,-1000.0,0.000185,2]
[384547039,1757453449698,-195.758807,0.00018595,20]
[384547041,1757453449708,-308.9079798,0.0001863,2]
[384547043,1757453449717,-153.73572,0.0001863,2]
[384547045,1757453449726,-709.07,0.0001863,2]
[384547047,1757453449735,-633.95,0.0001863,2]
[384547049,1757453449745,-582.39,0.0001863,2]
[384547051,1757453449754,-151.0,0.0001863,2]
[384547053,1757453449763,-151.0,0.0001863,2]
[384547055,1757453449772,-154.424043,0.0001863,2]
[384547057,1757453449781,-2207.32,0.0001863,2]
[384547059,1757453449793,-151.0,0.0001863,2]
[384547061,1757453449802,-151.0,0.0001863,2]
[384547063,1757453449811,-151.0,0.0001863,2]
[384547065,1757453449821,-151.0,0.0001863,2]
[384547067,1757453449831,-566.6,0.0001863,2]
[384547069,1757453449841,-224.753741,0.0001863,2]
[384547072,1757453449850,-224.753741,0.0001863,2]
[384547074,1757453449860,-224.753741,0.0001863,2]
[384547076,1757453449869,-1288.0,0.0001863,2]
[384547078,1757453449878,-224.753741,0.0001863,2]
[384547080,1757453449888,-500.87,0.0001863,2]
[384547082,1757453449897,-623.12,0.0001863,2]
[384547084,1757453449906,-926.17,0.0001863,2]
[384547085,1757453449916,-501.92,0.0001863,2]
[384547087,1757453449926,-4757.49,0.0001863,2]
[384547089,1757453449935,-990.69,0.0001863,2]
[384547091,1757453449944,-628.07,0.0001863,2]
[384547093,1757453449953,-542.61,0.0001863,2]
[384547095,1757453449962,-480.0,0.0001863,2]